bitfinex-derivatives/quotes_ETHF0:USTF0_20250403
["timestamp","ask_amount","ask_price","bid_price","bid_amount"]
[1743651905703,9.08171,1821.6,1821.5,1e-08]
[1743651905901,11.58171,1821.6,1821.5,1e-08]
[1743651907507,12.00950987,1821.6,1821.5,1e-08]
[1743651908313,9.08171,1821.6,1821.5,1e-08]
[1743651909512,11.58171,1821.6,1821.5,1e-08]
[1743651909919,11.67743285,1821.6,1821.5,1e-08]
[1743651911118,11.67743825,1821.6,1821.5,1e-08]
[1743651912421,11.67747744,1821.6,1821.5,1e-08]
[1743651912922,9.08171,1821.6,1821.5,1e-08]
[1743651913422,5.47271,1821.6,1821.5,1e-08]
[1743651913623,9.08171,1821.6,1821.5,1e-08]
[1743651914524,6.8168,1821.6,1821.5,0.87846001]
[1743651914825,0.87841,1821.6,1821.5,1e-08]
[1743651917226,6.8168,1821.7,1821.5,1e-08]
[1743651917414,7.69518,1821.7,1821.5,1e-08]
[1743651917619,6.8168,1821.7,1821.5,0.87846001]
[1743651917816,3.2078,1821.7,1821.6,0.6889]
[1743651918125,6.8168,1821.9,1821.7,0.87833]
[1743651918325,6.8168,1821.9,1821.8,2.29052]
[1743651918827,7.69507,1821.9,1821.8,1.4122]
[1743651919619,0.87837,1821.7,1821.6,1.3821]
[1743651919919,4.08617,1821.7,1821.6,2.8291]
[1743651920621,5.55357,1821.7,1821.6,2.8291]
[1743651920821,4.08617,1821.7,1821.6,2.8291]
[1743651921024,3.2078,1821.7,1821.6,2.8291]
[1743651921231,0.87834,1821.8,1821.6,2.8291]
[1743651921528,7.6951,1821.9,1821.7,1.447]
[1743651921930,0.87832,1821.8,1821.7,1.447]
[1743651922431,7.6951,1821.9,1821.7,1.447]
[1743651922821,7.6941,1821.9,1821.7,1.447]
[1743651923431,0.87832,1821.8,1821.7,1.447]
[1743651923932,6.8158,1821.9,1821.7,1.447]
[1743651924230,0.87832,1821.8,1821.7,1.447]
[1743651925732,4.48629,1821.9,1821.7,1.447]
[1743651926031,3.608,1821.9,1821.7,2.32536]
[1743651926229,4.48628,1821.9,1821.7,1.447]
[1743651926533,7.69408,1821.9,1821.8,1.4303]
[1743651930532,0.87841,1821.6,1821.5,1e-08]
[1743651930732,7.69421,1821.6,1821.5,1e-08]
[1743651931625,7.69421,1821.6,1821.5,0.87845001]
[1743651931626,3.608,1821.6,1821.5,0.87845001]
[1743651931834,3.608,1821.6,1821.5,1e-08]
[1743651932038,4.48641,1821.6,1821.5,2.94660001]
[1743651932533,7.69421,1821.6,1821.5,2.94660001]
[1743651934428,6.8158,1821.6,1821.5,2.94660001]
[1743651934623,3.608,1821.6,1821.5,2.94660001]
[1743651934833,4.48641,1821.6,1821.5,2.94660001]
[1743651935735,3.608,1821.6,1821.5,2.94660001]
[1743651937035,3.608,1821.6,1821.5,3.82506001]
[1743651937234,3.2078,1821.8,1821.5,2.94660001]
[1743651937437,3.2078,1821.8,1821.7,0.87837]
[1743651937632,3.2078,1821.8,1821.6,2.26778]
[1743651937830,3.2078,1821.8,1821.6,1.3894]
[1743651937831,0.87837,1821.7,1821.6,1.3894]
[1743651939136,0.87841,1821.6,1821.5,1.44980001]
[1743651939339,8.40641,1821.6,1821.5,0.72870001]
[1743651941633,8.40641,1821.6,1821.5,1e-08]
[1743651946443,10.90641,1821.6,1821.5,1e-08]
[1743651948850,8.40641,1821.6,1821.5,1e-08]
[1743651953152,4.79841,1821.6,1821.5,1e-08]
[1743651953455,8.40641,1821.6,1821.5,1e-08]
[1743651953752,8.40641,1821.6,1821.5,0.74690001]
[1743651954255,8.40641,1821.6,1821.5,1e-08]
[1743651955950,8.40641,1821.6,1821.5,0.71570001]
[1743651957048,7.69421,1821.6,1821.5,0.71570001]
[1743651961247,3.2078,1821.6,1821.5,0.71570001]
[1743651961453,3.2078,1821.6,1821.5,1.59416001]
[1743651961851,4.08613,1821.8,1821.5,1.59416001]
[1743651962056,7.69413,1821.8,1821.6,1.4086]
[1743651962252,6.8158,1821.8,1821.7,0.7524]
[1743651962451,7.69412,1821.8,1821.7,0.7524]
[1743651963254,6.8158,1821.8,1821.7,0.7524]
[1743651963858,6.8158,1821.8,1821.7,3.03937]
[1743651964755,6.8158,1821.8,1821.7,2.161]
[1743651967160,6.8158,1821.8,1821.7,3.03937]
[1743651967363,3.608,1821.8,1821.7,2.161]
[1743651968463,3.608,1821.8,1821.7,3.03937]
[1743651971963,3.2078,1821.9,1821.8,0.87832]
[1743651972268,6.8148,1821.9,1821.8,3.11182]
[1743651974059,6.8148,1821.9,1821.8,2.2335]
[1743651974366,7.69307,1821.9,1821.8,2.2335]
[1743651974865,6.8148,1821.9,1821.8,2.2335]
[1743651975253,9.16557,1821.9,1821.8,2.2335]
[1743651975456,9.16557,1821.9,1821.5,1e-08]
[1743651975457,0.87841,1821.6,1821.5,1e-08]
[1743651975768,7.69321,1821.6,1821.5,1e-08]
[1743651976563,9.16571,1821.6,1821.5,1e-08]
[1743651977962,3.2078,1821.6,1821.5,1e-08]
[1743651978164,3.2078,1821.8,1821.6,0.87839]
[1743651978368,4.08613,1821.8,1821.7,1.4102]
[1743651979173,3.2078,1821.8,1821.7,1.4102]
[1743651980473,0.87838,1821.7,1821.5,1e-08]
[1743651980687,4.3671,1821.6,1821.5,1e-08]
[1743651980979,5.24551,1821.6,1821.5,2.18560001]
[1743651981788,4.3671,1821.6,1821.5,2.18560001]
[1743651982291,3.2078,1821.8,1821.5,2.93620001]
[1743651982488,3.2078,1821.8,1821.6,2.31789]
[1743651982789,3.2078,1821.8,1821.7,2.31787]
[1743651984093,0.87838,1821.7,1821.5,1.49670001]
[1743651984292,3.8994,1821.8,1821.5,3.00480001]
[1743651984590,0.87839,1821.7,1821.5,3.00480001]
[1743651985178,0.87839,1821.7,1821.5,3.88326001]
[1743651985386,0.87839,1821.7,1821.5,3.00480001]
[1743651985681,0.87839,1821.7,1821.5,3.88325001]
[1743651985882,4.77774,1821.8,1821.5,3.88325001]
[1743651986081,4.77774,1821.8,1821.6,1.4495]
[1743651986492,0.87837,1821.7,1821.6,1.4495]
[1743651986691,4.77775,1821.8,1821.6,1.4495]
[1743651989784,3.8994,1821.8,1821.6,2.32791]
[1743651989991,6.8148,1821.8,1821.6,1.4495]
[1743651990286,3.2078,1821.8,1821.7,2.36017]
[1743651990493,1.63611,1822.1,1821.7,1.4818]
[1743651990494,3.2078,1822.0,1821.7,1.4818]
[1743651990796,3.2078,1822.0,1821.9,0.87827]
[1743651991297,3.2078,1822.0,1821.9,2.36007]
[1743651996295,1.4658,1822.1,1822.0,0.87822]
[1743651996497,0.00822593,1822.2,1822.0,1.3867]
[1743651996701,0.00822593,1822.2,1822.1,2.31397]
[1743652002594,0.00822593,1822.2,1822.1,3.80097]
[1743652005206,1.50732593,1822.2,1822.1,3.80097]
[1743652006903,0.00822593,1822.2,1822.1,3.80097]
[1743652010100,1.45852593,1822.2,1822.1,3.80097]
[1743652012398,1.45852593,1822.2,1822.1,3.06247]
[1743652015510,1.45852593,1822.2,1822.1,2.1843]
[1743652016409,1.45852593,1822.2,1822.1,3.06247]
[1743652019913,1.45852593,1822.2,1822.1,2.1843]
[1743652020217,1.45852593,1822.2,1822.1,3.06247]
[1743652020812,1.45852593,1822.2,1822.1,2.1843]
[1743652021015,1.45852593,1822.2,1822.1,3.06247]
[1743652022519,1.45852593,1822.2,1822.1,2.1843]
[1743652022718,1.45852593,1822.2,1822.1,3.06247]
[1743652025518,4.66632593,1822.2,1822.1,2.36517]
[1743652026417,8.27132593,1822.2,1821.6,9.0318]
[1743652026627,3.2078,1822.0,1821.6,3.2078]
[1743652026813,3.2078,1821.7,1821.5,0.87844001]
[1743652027012,2.948,1821.6,1821.5,0.87844001]
[1743652027420,2.948,1821.6,1821.5,1e-08]
[1743652027817,6.553,1821.6,1821.5,1e-08]
[1743652028714,6.553,1821.6,1821.5,0.87846001]
[1743652029518,6.553,1821.6,1821.5,2.31926001]
[1743652030718,3.605,1821.8,1821.5,1.44080001]
[1743652030915,5.0133,1821.8,1821.6,1.4408]
[1743652031120,5.0133,1821.8,1821.7,0.87837]
[1743652031424,3.2078,1821.9,1821.8,0.87832]
[1743652031825,5.0563,1822.0,1821.9,0.87827]
[1743652032126,5.0563,1822.0,1821.9,1.63367]
[1743652032421,3.605,1822.0,1821.9,1.63367]
[1743652033122,3.61322593,1822.2,1822.1,0.87817]
[1743652033315,3.61322593,1822.2,1822.0,2.29439]
[1743652033516,3.61322593,1822.2,1822.1,2.29437]
[1743652033811,0.00822593,1822.2,1822.1,2.29437]
[1743652035421,0.00822593,1822.2,1822.1,3.05347]
[1743652037023,3.2078,1822.8,1822.1,6.87073]
[1743652037225,1.4517,1822.6,1822.4,0.878]
[1743652037618,2.1556,1822.6,1822.4,0.878]
[1743652037818,2.1556,1822.6,1822.4,2.3924]
[1743652038726,1.4794,1822.5,1822.4,2.3924]
[1743652039027,1.4794,1822.5,1822.3,0.88626593]
[1743652039424,5.96139,1822.5,1822.3,0.88626593]
[1743652039624,4.08583,1822.4,1822.3,0.00822593]
[1743652039921,5.56523,1822.4,1822.3,0.00822593]
[1743652040733,8.06523,1822.4,1822.3,1e-08]
[1743652045938,5.56523,1822.4,1822.3,1e-08]
[1743652046130,9.16923,1822.4,1822.3,1e-08]
[1743652047228,11.66923,1822.4,1822.3,1e-08]
[1743652047831,4.6872,1822.4,1822.3,1e-08]
[1743652048032,9.16923,1822.4,1822.3,1e-08]
[1743652054337,5.96143,1822.4,1822.3,1e-08]
[1743652054537,9.16923,1822.4,1822.3,1e-08]
[1743652055942,5.96143,1822.4,1822.3,1e-08]
[1743652056142,9.16923,1822.4,1822.3,1e-08]
[1743652058940,11.7652102,1822.4,1822.3,1e-08]
[1743652059335,12.4576102,1822.4,1822.3,1e-08]
[1743652059742,9.9576102,1822.4,1822.3,1e-08]
[1743652060644,12.4576102,1822.4,1822.3,1e-08]
[1743652060947,9.9576102,1822.4,1822.3,1e-08]
[1743652061348,9.95760542,1822.4,1822.3,1e-08]
[1743652062848,9.95760406,1822.4,1822.3,1e-08]
[1743652063045,6.35360406,1822.4,1822.3,1e-08]
[1743652063241,9.86163,1822.4,1822.3,1e-08]
[1743652064549,6.25763,1822.4,1822.3,1e-08]
[1743652064750,9.86163,1822.4,1822.3,1e-08]
[1743652073152,7.68983,1822.4,1822.3,1e-08]
[1743652073746,9.17403,1822.4,1822.3,1e-08]
[1743652078256,2.19538,1822.2,1821.4,0.87849]
[1743652078454,0.87827,1821.9,1821.8,2.2354]
[1743652078760,4.08607,1821.9,1821.8,1.4726]
[1743652078956,4.08607,1821.9,1821.8,2.2354]
[1743652080861,6.8118,1821.9,1821.8,3.11372]
[1743652081062,3.604,1821.9,1821.8,3.11372]
[1743652081564,3.604,1821.9,1821.8,2.2354]
[1743652083362,3.604,1821.9,1821.8,3.11372]
[1743652087364,6.8118,1822.3,1822.2,0.87812]
[1743652087563,6.8118,1822.3,1821.9,4.6415]
[1743652087764,6.8118,1822.3,1822.0,2.1271]
[1743652087966,3.2078,1822.3,1822.1,2.31187]
[1743652088264,6.8118,1822.3,1822.2,1.4337]
[1743652088561,7.68988,1822.3,1822.2,1.4337]
[1743652089767,0.87817,1822.1,1822.0,0.6934]
[1743652090772,6.8118,1822.3,1822.0,1.57161]
[1743652090773,7.6899,1822.3,1822.0,1.57161]
[1743652090967,3.2078,1822.3,1822.1,1.4174]
[1743652091165,3.603,1822.2,1822.1,1.4174]
[1743652093173,3.603,1822.2,1821.7,0.00822593]
[1743652093370,3.2078,1822.0,1821.8,1.63551]
[1743652093575,3.2078,1822.0,1821.9,1.4704]
[1743652093871,6.8108,1822.0,1821.9,1.4704]
[1743652095768,3.603,1822.0,1821.9,1.4704]
[1743652095967,3.603,1822.0,1821.9,2.34867]
[1743652097374,6.8108,1822.2,1822.0,0.87821]
[1743652097576,6.8108,1822.2,1821.7,3.21602593]
[1743652097577,3.2078,1822.2,1822.1,3.11777]
[1743652098172,3.2078,1822.2,1822.1,2.2396]
[1743652099476,3.2078,1822.4,1822.1,2.2396]
[1743652099776,3.603,1822.3,1822.2,1.4638]
[1743652099976,6.8108,1822.4,1822.3,0.87808]
[1743652100270,6.8108,1822.4,1822.2,2.3419]
[1743652100675,6.8108,1822.4,1822.3,1.4638]
[1743652101671,3.603,1822.5,1822.4,0.878]
[1743652101977,3.603,1822.5,1822.4,1.6016]
[1743652102169,3.603,1822.5,1822.4,2.3199]
[1743652103078,0.00822593,1822.7,1822.6,0.87793]
[1743652103374,3.61122593,1822.7,1822.6,0.87793]
[1743652104178,0.00822593,1822.7,1822.6,0.87793]
[1743652104881,5.0604,1823.1,1823.0,0.87774]
[1743652105081,3.603,1823.1,1823.0,0.87774]
[1743652106477,1.46532593,1823.2,1823.0,1.58724]
[1743652106781,3.61122593,1823.2,1823.0,1.58724]
[1743652106981,3.61122593,1823.2,1823.1,1.4246]
[1743652108367,3.61122593,1823.2,1823.0,0.7095]
[1743652108574,4.6579,1823.1,1822.9,0.00822593]
[1743652108877,2.1377,1823.0,1822.9,0.00822593]
[1743652111582,3.01544,1823.0,1822.9,0.00822593]
[1743652112978,6.22324,1823.0,1822.9,0.00822593]
[1743652113176,5.3455,1823.0,1822.9,0.00822593]
[1743652113780,6.22324,1823.0,1822.9,0.00822593]
[1743652118484,8.9465,1823.0,1822.9,0.00822593]
[1743652118682,9.82424,1823.0,1822.9,0.00822593]
[1743652118876,9.82424,1823.0,1822.9,0.71222593]
[1743652120484,9.82424,1823.0,1822.9,0.00822593]
[1743652125381,6.61644,1823.0,1822.9,0.00822593]
[1743652125589,9.82424,1823.0,1822.9,0.00822593]
[1743652126385,6.22324,1823.0,1822.9,0.00822593]
[1743652126585,9.82424,1823.0,1822.9,1.40802593]
[1743652128987,5.3455,1823.0,1822.9,1.40802593]
[1743652129185,8.9465,1823.0,1822.9,2.11712593]
[1743652129383,9.82424,1823.0,1822.9,2.11712593]
[1743652129987,8.9465,1823.0,1822.9,2.11712593]
[1743652130589,9.82424,1823.0,1822.9,0.00822593]
[1743652143198,6.61644,1823.0,1822.9,0.00822593]
[1743652143399,9.82424,1823.0,1822.9,0.00822593]
[1743652144301,6.61644,1823.0,1822.9,0.00822593]
[1743652144598,9.82424,1823.0,1822.9,0.00822593]
[1743652147101,6.8078,1823.0,1822.9,0.00822593]
[1743652147301,6.8078,1823.0,1822.9,2.15462593]
[1743652147602,7.68554,1823.0,1822.9,2.84252593]
[1743652147800,7.68554,1823.0,1822.9,0.00822593]
[1743652148202,9.15574,1823.0,1822.9,0.00822593]
[1743652153100,0.87804,1822.4,1821.9,3.2078]
[1743652153296,2.19456,1822.9,1822.1,2.1573]
[1743652153297,7.68591,1822.3,1822.1,2.1573]
[1743652153495,3.6,1822.3,1822.2,2.28282]
[1743652153799,3.6,1822.5,1822.2,2.28282]
[1743652154002,3.6,1822.5,1822.3,2.2732]
[1743652154192,3.6,1822.5,1822.4,2.2708]
[1743652155497,4.47798,1822.5,1822.4,2.2708]
[1743652155698,0.87803,1822.4,1822.3,0.7574]
[1743652155898,0.87808,1822.3,1822.2,0.00822593]
[1743652156099,4.08588,1822.3,1822.2,0.00822593]
[1743652156308,6.26598,1822.3,1822.2,0.00822593]
[1743652162009,6.26598,1822.3,1822.2,1.41052593]
[1743652162613,5.53798,1822.3,1822.2,1.41052593]
[1743652162914,4.08588,1822.3,1822.2,1.41052593]
[1743652163815,5.54858,1822.3,1822.2,0.00822593]
[1743652164723,4.08588,1822.3,1822.2,1.40452593]
[1743652166922,7.68588,1822.3,1822.2,1.40452593]
[1743652169023,6.8078,1822.3,1822.2,1.40452593]
[1743652169323,3.6,1822.3,1822.2,1.40452593]
[1743652170121,4.47808,1822.3,1822.2,1.40452593]
[1743652171429,3.6,1822.3,1822.2,1.40452593]
[1743652175332,4.47808,1822.3,1822.2,1.40452593]
[1743652175933,7.43468,1822.3,1822.2,1.40452593]
[1743652177133,6.5566,1822.3,1822.2,1.40452593]
[1743652177333,5.1011,1822.3,1822.2,1.40452593]
[1743652177637,3.6,1822.3,1822.2,1.40452593]
[1743652178433,4.47808,1822.3,1822.2,1.40452593]
[1743652179433,3.6,1822.3,1822.2,1.40452593]
[1743652180237,4.47808,1822.3,1822.2,1.40452593]
[1743652181336,5.89008,1822.3,1822.2,1.40452593]
[1743652181931,5.89008,1822.3,1822.2,0.00822593]
[1743652182636,5.89008,1822.3,1822.2,1.49982593]
[1743652183333,3.6,1822.3,1822.2,1.49982593]
[1743652183832,0.00822593,1822.6,1822.2,1.49982593]
[1743652183833,3.21602593,1822.6,1822.2,1.49982593]
[1743652184037,6.81602593,1822.6,1822.3,1.63616]
[1743652184240,7.69396593,1822.6,1822.4,1.3996]
[1743652184442,6.81602593,1822.6,1822.4,2.1056]
[1743652184640,7.69398593,1822.6,1822.4,2.1056]
[1743652184938,7.69398593,1822.6,1822.5,1.3996]
[1743652187745,7.69298593,1822.6,1822.5,1.3996]
[1743652189140,4.48518593,1822.6,1822.5,1.3996]
[1743652189443,4.48518593,1822.6,1822.4,0.706]
[1743652189444,0.87798,1822.5,1822.4,0.706]
[1743652189640,0.87803,1822.4,1822.2,1.52022593]
[1743652189944,5.0523,1822.3,1822.2,1.52022593]
[1743652191140,5.93038,1822.3,1822.2,1.52022593]
[1743652192145,9.13818,1822.3,1822.2,1.52022593]
[1743652193540,5.93038,1822.3,1822.2,1.52022593]
[1743652194747,2.30282,1822.5,1822.2,2.39834593]
[1743652194940,3.599,1822.4,1822.2,2.39834593]
[1743652195140,4.47703,1822.4,1822.3,1.4616]
[1743652196247,2.9016,1822.5,1822.3,1.4616]
[1743652196543,3.77959,1822.5,1822.4,0.719]
[1743652196745,7.37859,1822.5,1822.4,0.719]
[1743652196948,6.5006,1822.5,1822.4,1.4124]
[1743652197141,6.5006,1822.5,1822.4,2.8697]
[1743652200252,7.37858,1822.5,1822.4,2.8697]
[1743652200443,6.5006,1822.5,1822.2,2.31171593]
[1743652200648,5.0238,1822.5,1822.3,1.57567]
[1743652200953,5.0238,1822.5,1822.4,1.62733]
[1743652200954,3.599,1822.5,1822.4,1.62733]
[1743652201149,3.21602593,1822.6,1822.4,1.62733]
[1743652201452,8.23102593,1822.6,1822.5,1.4254]
[1743652201952,3.21602593,1822.6,1822.5,2.30338]
[1743652202545,3.21602593,1822.6,1822.5,1.4254]
[1743652202747,3.21602593,1822.6,1822.4,1.6273]
[1743652202955,1.4172,1822.5,1822.4,1.6273]
[1743652203151,1.4172,1822.5,1822.4,3.1403]
[1743652203548,3.21602593,1822.6,1822.5,0.87798]
[1743652203748,3.21602593,1822.6,1822.5,2.39098]
[1743652204255,0.00822593,1822.6,1822.5,2.39098]
[1743652205844,1.52022593,1822.6,1822.5,2.39098]
[1743652207549,0.00822593,1822.6,1822.5,2.39098]
[1743652208756,1.41272593,1822.6,1822.5,2.39098]
[1743652209559,0.00822593,1822.6,1822.5,2.39098]
[1743652211053,0.00822593,1822.6,1822.4,3.9571]
[1743652211054,0.00822593,1822.6,1822.4,0.7493]
[1743652211458,1.41272593,1822.6,1822.4,0.7493]
[1743652211659,0.00822593,1822.6,1822.5,0.87798]
[1743652211851,0.00822593,1822.6,1822.5,2.31208]
[1743652212755,2.81822593,1822.6,1822.5,2.31208]
[1743652213651,7.29315593,1822.6,1822.3,1.57566]
[1743652213864,2.27079,1822.5,1822.3,1.57566]
[1743652214053,1.3928,1822.4,1822.3,1.57566]
[1743652215060,0.00822593,1822.6,1822.5,0.87798]
[1743652215557,0.00822593,1822.6,1822.5,2.38198]
[1743652215856,4.08556,1823.0,1822.7,0.87784]
[1743652216157,0.87779,1822.9,1822.7,0.87784]
[1743652216360,1.3973,1822.8,1822.6,1.6192]
[1743652219358,1.3973,1822.8,1822.7,0.87788]
[1743652219663,1.3973,1822.8,1822.7,2.30828]
[1743652219857,1.3973,1822.8,1822.7,3.06618]
[1743652220058,3.60522593,1822.9,1822.8,0.87784]
[1743652220257,3.60522593,1822.9,1822.8,2.30824]
[1743652221156,0.00822593,1822.9,1822.8,2.30824]
[1743652225160,0.00822593,1822.9,1822.7,1.63575]
[1743652225363,0.88601593,1822.9,1822.6,3.11081]
[1743652225666,1.53062593,1822.9,1822.7,0.87788]
[1743652225859,0.6917,1822.8,1822.7,0.87788]
[1743652226063,0.6917,1822.8,1822.6,1.6192]
[1743652226265,1.5224,1822.7,1822.6,1.6192]
[1743652226766,4.2887,1822.8,1822.7,0.87788]
[1743652226954,4.2887,1822.8,1822.7,2.31758]
[1743652227159,4.2887,1822.8,1822.7,0.87788]
[1743652227467,5.0133,1822.8,1822.7,0.87788]
[1743652228267,6.4667,1822.8,1822.7,0.87788]
[1743652229464,6.4667,1822.8,1822.6,3.0064]
[1743652229661,6.4667,1822.8,1822.6,2.1285]
[1743652229662,1.4534,1822.7,1822.6,2.1285]
[1743652230060,1.4534,1822.7,1822.6,1.4397]
[1743652230765,1.4534,1822.7,1822.5,0.87794]
[1743652231167,2.33129,1822.7,1822.5,0.87794]
[1743652231671,1.404,1822.6,1822.5,0.87794]
[1743652232666,4.6118,1822.6,1822.3,0.87805]
[1743652232867,3.2078,1822.4,1822.2,3.05892593]
[1743652233370,1.4736,1822.3,1822.2,3.05892593]
[1743652235864,1.4736,1822.3,1822.2,0.00822593]
[1743652237270,2.35168,1822.3,1822.2,0.00822593]
[1743652237867,1.4736,1822.3,1822.2,0.00822593]
[1743652238767,5.55948,1822.3,1822.2,0.00822593]
[1743652240569,0.87823,1822.0,1821.8,2.172]
[1743652240770,0.7475,1821.9,1821.8,2.172]
[1743652240973,0.7475,1821.9,1821.8,3.05032]
[1743652240974,2.9161,1821.9,1821.8,3.05032]
[1743652241275,2.9161,1821.9,1821.8,2.172]
[1743652241668,0.87833,1821.8,1821.6,4.80628]
[1743652241874,1.4311,1821.8,1821.7,0.00822593]
[1743652243779,2.30942,1821.8,1821.7,0.00822593]
[1743652249671,5.51722,1821.8,1821.7,0.00822593]
[1743652250982,1.4311,1821.8,1821.7,0.00822593]
[1743652251182,1.4311,1821.8,1821.7,0.74462593]
[1743652251384,1.4311,1821.8,1821.7,2.14532593]
[1743652251776,1.4311,1821.8,1821.7,3.02369593]
[1743652252684,1.4311,1821.8,1821.7,2.14532593]
[1743652253077,1.4311,1821.8,1821.7,2.86512593]
[1743652253781,1.4311,1821.8,1821.7,3.74349593]
[1743652253984,0.00822593,1821.9,1821.8,0.87832]
[1743652254180,0.00822593,1821.9,1821.8,1.4796]
[1743652254381,2.13772593,1821.9,1821.8,1.4796]
[1743652254984,2.13772593,1821.9,1821.8,2.35792]
[1743652255488,1.41392593,1821.9,1821.8,2.35792]
[1743652255787,0.00822593,1821.9,1821.8,2.35792]
[1743652260990,0.00822593,1821.9,1821.8,5.56572]
[1743652261988,0.749,1822.4,1822.3,0.87808]
[1743652262290,3.597,1822.5,1822.4,0.87803]
[1743652263792,3.597,1822.5,1822.4,2.37503]
[1743652264492,0.00822593,1822.6,1822.4,2.37503]
[1743652264790,0.00822593,1822.6,1822.5,1.497]
[1743652264991,1.44952593,1822.6,1822.5,1.497]
[1743652265289,3.94952593,1822.6,1822.1,3.2078]
[1743652265482,3.2078,1822.2,1822.0,0.87822]
[1743652265680,6.8048,1822.2,1822.0,0.87822]
[1743652265880,2.9459,1822.1,1822.0,0.87822]
[1743652266280,2.9459,1822.1,1821.9,3.79964]
[1743652266695,2.9459,1822.1,1821.9,2.9214]
[1743652266696,1.4576,1822.0,1821.9,2.9214]
[1743652266886,1.4576,1822.0,1821.9,3.79967]
[1743652269596,1.4576,1822.0,1821.9,2.9214]
[1743652269890,1.4576,1822.0,1821.7,0.88655593]
[1743652269891,2.33582,1822.0,1821.7,0.88655593]
[1743652270095,3.596,1821.9,1821.8,0.87832]
[1743652270495,3.596,1821.9,1821.8,2.26022]
[1743652274298,3.596,1821.9,1821.8,2.95212]
[1743652279901,3.596,1821.9,1821.7,0.88655593]
[1743652280102,2.1248,1821.8,1821.7,0.88655593]
[1743652281504,2.1248,1821.8,1821.7,1.58165593]
[1743652282704,3.596,1821.9,1821.8,0.87832]
[1743652282903,3.596,1821.9,1821.8,2.34282]
[1743652283099,5.1054,1821.9,1821.8,2.34282]
[1743652284508,5.1054,1821.9,1821.8,1.4645]
[1743652284695,5.1054,1821.9,1821.7,1.58165593]
[1743652284902,1.4661,1821.8,1821.7,1.58165593]
[1743652289101,3.596,1821.9,1821.8,0.87832]
[1743652289296,3.596,1821.9,1821.8,3.14142]
[1743652289606,5.7853,1822.1,1822.0,0.87822]
[1743652290308,5.7853,1822.1,1822.0,1.61722]
[1743652291803,3.9155,1822.2,1822.1,0.87817]
[1743652292005,3.596,1822.4,1822.1,4.612]
[1743652292204,3.596,1822.4,1822.3,0.87808]
[1743652292606,3.596,1822.4,1822.3,2.97728]
[1743652293698,2.8543,1822.5,1822.4,0.87803]
[1743652293906,2.8543,1822.5,1822.4,2.39423]
[1743652295727,0.00822593,1822.6,1822.5,0.87798]
[1743652297010,0.7485,1823.0,1822.9,0.87779]
[1743652297310,4.3435,1823.0,1822.9,0.87779]
[1743652298014,5.8316,1823.0,1822.9,0.87779]
[1743652299410,5.8316,1823.0,1822.9,2.30109]
[1743652299715,6.70935,1823.0,1822.8,0.00822593]
[1743652299910,1.4028,1822.9,1822.8,0.00822593]
[1743652300116,1.4028,1822.9,1822.7,0.87786]
[1743652300117,4.6106,1822.9,1822.1,3.2078]
[1743652300315,4.08572,1822.7,1822.4,0.87803]
[1743652300612,0.7502,1822.8,1822.5,0.87798]
[1743652300613,3.595,1822.6,1822.5,0.87798]
[1743652300912,5.748,1822.8,1822.7,0.87788]
[1743652301114,3.595,1822.8,1822.7,0.87788]
[1743652302118,3.595,1822.8,1822.7,2.31658]
[1743652302417,4.9978,1822.8,1822.7,2.31658]
[1743652302616,4.9978,1822.8,1822.7,0.87788]
[1743652302812,4.9978,1822.8,1822.6,2.38372593]
[1743652303020,1.4955,1822.7,1822.6,2.38372593]
[1743652303417,1.4955,1822.7,1822.6,0.00822593]
[1743652303718,5.58118,1822.7,1822.6,0.00822593]
[1743652309416,6.26958,1822.7,1822.6,0.00822593]
[1743652309615,5.3917,1822.7,1822.6,0.00822593]
[1743652310427,6.26958,1822.7,1822.6,0.00822593]
[1743652313623,6.26958,1822.7,1822.2,0.8781]
[1743652313624,7.8917,1822.7,1822.1,3.01796]
[1743652313818,0.87806,1822.4,1822.1,3.01796]
[1743652314125,6.5642,1822.3,1822.1,3.01796]
[1743652314330,1.5073,1822.2,1822.1,3.01796]
[1743652317224,1.5073,1822.2,1822.1,2.1398]
[1743652317918,1.5073,1822.2,1822.0,4.09421593]
[1743652318120,1.5073,1822.2,1822.0,5.48271593]
[1743652318914,2.38543,1822.2,1822.0,5.48271593]
[1743652319327,1.4173,1822.1,1822.0,2.27491593]
[1743652319721,1.4173,1822.1,1822.0,0.00822593]
[1743652321018,5.50327,1822.1,1822.0,0.00822593]
[1743652324630,4.6251,1822.1,1822.0,0.00822593]
[1743652325122,5.0569,1822.3,1822.0,0.00822593]
[1743652325123,3.2078,1822.3,1822.0,0.00822593]
[1743652325328,3.2078,1822.3,1822.2,0.87809]
[1743652326327,3.2078,1822.3,1822.2,1.57769]
[1743652327825,2.33066,1822.6,1822.4,0.87803]
[1743652328026,7.39686,1822.6,1822.5,1.4461]
[1743652328432,7.39686,1822.6,1822.5,2.1682]
[1743652329629,1.9419327,1823.2,1822.5,2.1682]
[1743652329630,3.2078,1822.9,1822.5,2.1682]
[1743652329832,10.59021,1822.9,1822.6,3.08319]
[1743652330031,10.59021,1822.9,1822.7,1.4461]
[1743652330433,6.99621,1822.9,1822.7,1.4461]
[1743652330633,10.59021,1822.9,1822.7,1.4461]
[1743652332037,9.7124,1822.9,1822.6,0.7592]
[1743652332338,4.08568,1822.7,1822.6,0.7592]
[1743652333238,8.2402,1822.9,1822.6,0.7592]
[1743652333438,9.11801,1822.9,1822.6,3.05741]
[1743652333836,9.11801,1822.9,1822.7,1.4203]
[1743652335541,0.87784,1822.8,1822.7,1.4203]
[1743652335742,2.32304,1822.8,1822.7,1.4203]
[1743652336339,1.4452,1822.8,1822.6,0.87793]